Workbook

Sheet MPAY5 CALC
A2: 2022 Over 2019 Growth Rate by Hospital (Jan-Dec paid thru Mar) | AP2: =7796/288000 -> 0.02706944444
A3: MPA Y5 Attribution | L3: National Medicare Growth 20 over 19: | M3: =-3.38% -> -0.0338 | R3: Excluding Quality Adjustment | U3: Academic Tier | X3: Adding Quality Adjustment Score of RRIP + MHAC
L4: National Medicare Growth 21 over 20: | M4: =0.0896 -> 0.0896 | S4: Maximum Perf. | T4: Maximum Revenue | BH4: DISCLOSURE ONLY
B5: National Average | L5: National Medicare Growth 22 over 21: | M5: 0.0284 | S5: Threshold | T5: at Risk | AE5: Traditional MPA before Other Adj. | AH5: Prior ECIP | AJ5: With ECIP | AO5: EQIP Adjustment | AR5: MDPCP Supplemental Adjustment | AZ5: MPA Savings Component | BD5: CTI Adjustment | BH5: Original MPA Savings Component
A6: pro2 | B6: MD Attribution | C6: =SUM(C10:C54) -> 756445.55 | D6: =SUM(D10:D54) -> 9077346.6 | E6: =SUM(E10:E54) -> 9500572164 | G6: =E6/C6 -> 12559.49244 | H6: =SUM(H10:H54) -> 725729.7 | I6: =SUM(I10:I54) -> 8708756.4 | J6: =SUM(J10:J54) -> 1.015633386e+10 | L6: =J6/H6 -> 13994.65098 | M6: =L6/G6-1 -> 0.1142688332 | S6: 0.03 | T6: 0.01 | AB6: =SUM(AB10:AB54) -> 4794237729 | AC6: Statewide total | AE6: Statewide total | AJ6: =SUM(AJ10:AJ54) -> 987900 | AK6: =SUM(AK10:AK54) -> 810055 | AL6: =SUM(AL10:AL54) -> 2331134 | AO6: =SUM(AO10:AO54) -> 10800000 | AR6: =SUM(AR10:AR54) -> -32917073.27 | AS6: =SUM(AS10:AS54) -> -64311437.36 | AU6: =SUM(AU10:AU54) -> -6299059.698 | AV6: =SUM(AV10:AV54) -> -32684657.49 | AW6: =SUM(AW10:AW54) -> 3585435.758 | AZ6: =(-BH6*19/20)-50000000 -> 10363717.44 | BD6: =SUM(BD10:BD54) -> 0.004466000013 | BH6: =SUM(BH10:BH54) -> -63540755.2
C7: BASE YEAR (2019) | H7: PERFORMANCE YEAR (2022) | AC7: =SUM(AC10:AC54) -> -41604022.39 | AE7: =SUM(AE10:AE54) -> 5040877213
A8: HOSP ID | B8: HOSPITAL | C8: 2019 Part AB beneficiaries* | D8: 2019 Part AB Beneficiary Months | E8: 2019 COST (Risk Adjusted) | F8: 2019 Monthly TCOC per CAPITA (Risk Adjusted) | G8: 2019 TCOC per CAPITA (Risk Adjusted) | H8: 2022 Part AB beneficiaries* | I8: 2022 Part AB Beneficiary Months | J8: 2022 COST (Risk Adjusted) | K8: 2022 Monthly TCOC per CAPITA (Risk Adjusted) | L8: 2022 TCOC per CAPITA (Risk Adjusted) | M8: 2022 GROWTH RATE | P8: Hospital Specific Target Adjustment | Q8: Hopsital Specific Target | R8: 2022 Per Capita TCOC Benchmark (Risk Adjusted) | S8: 2022 Difference from Benchmark | T8: MPA Calculation BEFORE Academic Tier and Qual. Adj. | U8: Academic Performance (without cap) | V8: Academic Weight | W8: MPA Calculation BEFORE Qual. Adj. | X8: RY22 RRIP revenue adjustment | Y8: RY22 MHAC revenue adjustment | Z8: Quality Adjustment Score | AA8: MPA Calculation WITH Qual. Adj. | AB8: Hospital 2022 CY Total Medicare FFS Hospital Cost - MD Residents including Substance Abuse Claims** | AC8: MPA Performance $ | AE8: Hospital 2022 CY Total Medicare FFS Hospital Cost | AF8: Hospital Specific Factor after MPA | AH8: Initial Jul-Dec 2021 ECIP Aggregate TCOC Savings*** | AJ8: Final Jul-Dec 2021 ECIP Aggregate TCOC Savings*** | AK8: One Time DRG Correction to Jan-Jun 2021^ | AL8: Initial Jan-Jun 2022 ECIP Aggregate TCOC Savings*** | AM8: Hospital Specific Factor After MPA and ECIP | AO8: $ Amount | AP8: Hospital Specific Factor After MPA, ECIP and EQIP | AR8: Raw Result According to CRS Scorecard | AS8: Loss Cap According to CRS Scorecard | AT8: Overlap Elimination % | AU8: Adjusted Raw Results | AV8: Adjusted Cap | AW8: Final Adjustment | AX8: Hospital Specific Factor After MPA, ECIP, EQIP and MDPCP Supplemental Adjustment | AZ8: MPA Savings Component Amount^^^ | BA8: Special EQIP One-time Funding*^ | BB8: Hospital Specific Factor After MPA, ECIP, EQIP, MPA-SC and MDPCP Supplemental Adjustment | BD8: CTI Amount Net of Offset | BE8: CTI Amount after quality Adjustment | BF8: Hospital Specific Factor After MPA, ECIP, EQIP, MPA-SC, CTI and MDPCP Supplemental Adjustment | BG8: <-- Final results for CMS | BH8: MPA Savings Component Amount^^
A9: A | B9: B | C9: C | D9: D | E9: E | F9: F=E/D | G9: I=E/C | H9: J | I9: K | J9: L | K9: M | L9: P=L/J | M9: Q=P/I-1 | P9: R | Q9: S = (1+Q3)*(1+Q4+R)*(1+Q5+R)-1 | R9: T=I*(1+S) | S9: U=(P-T)/T | T9: V | U9: ACADPerf | V9: ACAD% | W9: V ACAD | X9: W | Y9: X | Z9: Y=W+X | AA9: Z | AB9: AA | AC9: AB=Z*AA | AE9: AD | AF9: AE=(1+AC/AD) | AH9: AG | AJ9: AJ | AK9: AJS | AL9: AK | AM9: AH=(AE+((AJ+AK+AJS)/(AD/2)) | AO9: AI | AP9: AM=AH+AI/(AD/2) | AR9: AN | AS9: AO | AT9: AP | AU9: AQ = AN x (1 - AP) | AV9: AR = AO x (1 - AP) | AW9: AS = Greater of AQ and AR | AX9: AT=AM + AS/AD | AZ9: AU | BA9: EQIP | BB9: AV=AT + ((AU+EQIP)*12)/AD | BD9: AW | BE9: AX = AW adjusted for Z | BF9: AY=AV + AX/AD | BH9: AU
A10: 210001 | B10: Meritus Medical Center | C10: 24529.17 | D10: =C10*12 -> 294350.04 | E10: 281059668.9 | F10: =E10/D10 -> 954.8484142 | G10: =E10/C10 -> 11458.18097 | H10: 23849.42 | I10: =H10*12 -> 286193.04 | J10: 304048407.9 | K10: =J10/I10 -> 1062.389246 | L10: =J10/H10 -> 12748.67095 | M10: =L10/G10-1 -> 0.1126260777 | P10: -0.0025 | Q10: =(1+$M$3)*(1+$M$4+P10)*(1+$M$5+P10)-1 -> 0.07756024092 | R10: =G10*(1+Q10) -> 12346.88025 | S10: =(L10-R10)/R10 -> 0.03254188064 | T10: =MIN($T$6,MAX(-T$6,(R10-L10)/R10*($T$6/$S$6))) -> -0.01 | U10: 0 | V10: 0 | W10: =MIN($T$6,MAX(-T$6,U10*($T$6/$S$6)))*V10+T10*(1-V10) -> -0.01 | X10: -0.0062 | Y10: 0.001333333333 | Z10: =SUM(X10:Y10) -> -0.004866666667 | AA10: =MIN($T$6,MAX(-T$6,U10*($T$6/$S$6)*(IF(U10>0,1+Z10,1-Z10))))*(V10)+MIN($T$6,MAX(-T$6,(R10-L10)/R10*($T$6/$S$6)*(IF((R10-L10)/R10>0,1+Z10,1-Z10))))*(1-V10) -> -0.01 | AB10: 109348979.8 | AC10: =AA10*AB10 -> -1093489.798 | AE10: 109946099.5 | AF10: =IF(IFERROR(1+AC10/AE10,1)>1.01,1.01,IF(IFERROR(1+AC10/AE10,1)<0.99,0.99,IFERROR(1+AC10/AE10,1))) -> 0.9900543102 | AH10: 0 | AJ10: 0 | AK10: 195331 | AL10: 0 | AM10: =AF10+((AL10+AJ10+AK10)/(AE10*6/12)) -> 0.993607524 | AO10: 0 | AP10: =AM10+((AO10)/(AE10*6/12)) -> 0.993607524 | AR10: -484135.82 | AS10: -2289871.56 | AT10: 0.77824 | AU10: =AR10*(1-AT10) -> -107361.9594 | AV10: =AS10*(1-AT10) -> -507801.9171 | AW10: =MAX(AU10,AV10) -> -107361.9594 | AX10: =AP10+AW10/AE10 -> 0.9926310277 | AZ10: =BH10/$BH$6*$AZ$6 -> 222122.5359 | BB10: =AX10+((AZ10+BA10)*24)/AE10 -> 1.041117885 | BD10: 6704208.479 | BE10: =BD10*IF(BD10>0,1+Z10,1-Z10) -> 6671581.331 | BF10: =ROUND(BB10+BE10/AE10,4) -> 1.1018 | BH10: -1361850.491
A11: 210002 | B11: University of Maryland | C11: 6157.92 | D11: =C11*12 -> 73895.04 | E11: 95330589.55 | F11: =E11/D11 -> 1290.081033 | G11: =E11/C11 -> 15480.9724 | H11: 4926.45 | I11: =H11*12 -> 59117.4 | J11: 83518327.99 | K11: =J11/I11 -> 1412.753741 | L11: =J11/H11 -> 16953.04489 | M11: =L11/G11-1 -> 0.09508914894 | P11: -0.0075 | Q11: =(1+$M$3)*(1+$M$4+P11)*(1+$M$5+P11)-1 -> 0.06737649292 | R11: =G11*(1+Q11) -> 16524.02603 | S11: 0.02596333741 | T11: -0.008654445802 | U11: -0.0344 | V11: 0.7875 | W11: =MIN($T$6,MAX(-T$6,U11*($T$6/$S$6)))*V11+T11*(1-V11) -> -0.009714069733 | X11: 0.01469999996 | Y11: -0.003666666667 | Z11: 0.01103333329 | AA11: =MIN($T$6,MAX(-T$6,U11*($T$6/$S$6)*(IF(U11>0,1+Z11,1-Z11))))*(V11)+MIN($T$6,MAX(-T$6,(R11-L11)/R11*($T$6/$S$6)*(IF((R11-L11)/R11>0,1+Z11,1-Z11))))*(1-V11) -> -0.009693778664 | AB11: 451725036.6 | AC11: =AA11*AB11 -> -4378922.521 | AE11: 483327678.9 | AF11: =IF(IFERROR(1+AC11/AE11,1)>1.01,1.01,IF(IFERROR(1+AC11/AE11,1)<0.99,0.99,IFERROR(1+AC11/AE11,1))) -> 0.9909400543 | AH11: 73269 | AJ11: =83336-AH11 -> 10067 | AK11: 8619 | AL11: 52501 | AM11: =AF11+((AL11+AJ11+AK11)/(AE11*6/12)) -> 0.9912346247 | AO11: 10800000 | AP11: =AM11+((AO11)/(AE11*6/12)) -> 1.035924803 | AR11: -350092.34 | AS11: -295225.49 | AT11: 0.64435 | AU11: =AR11*(1-AT11) -> -124510.3407 | AV11: =AS11*(1-AT11) -> -104996.9455 | AW11: =MAX(AU11,AV11) -> -104996.9455 | AX11: =AP11+AW11/AE11 -> 1.035707565 | AZ11: =BH11/$BH$6*$AZ$6 -> 1341170.551 | BA11: 50000000 | BB11: =AX11+((AZ11+BA11)*24)/AE11 -> 3.585092065 | BD11: -8209753.568 | BE11: =BD11*IF(BD11>0,1+Z11,1-Z11) -> -8119172.621 | BF11: =ROUND(BB11+BE11/AE11,4) -> 3.5683 | BH11: -8222820.642
A12: 210003 | B12: Prince George's Hospital Center | C12: 10533.44 | D12: 126401.28 | E12: 142182130.2 | F12: 1124.847234 | G12: 13498.1668 | H12: 9407.43 | I12: 112889.16 | J12: 139195584.8 | K12: 1233.028794 | L12: 14796.34552 | M12: 0.09617444624 | P12: -0.005 | Q12: 0.07246232817 | R12: 14476.2754 | S12: 0.02210997762 | T12: -0.007369992538 | U12: 0 | V12: 0 | W12: -0.007369992538 | X12: 0.01240000135 | Y12: -0.001 | Z12: 0.01140000135 | AA12: -0.007285974613 | AB12: 81209314.36 | AC12: -591689.0028 | AE12: 89299416.38 | AF12: 0.9933741 | AH12: 0 | AJ12: 0 | AK12: 0 | AL12: 48143 | AM12: 0.9944523377 | AO12: 0 | AP12: 0.9944523377 | AR12: 1762394.22 | AS12: -487671.34 | AT12: 0.75544 | AU12: 431011.1304 | AV12: -119264.9029 | AW12: 431011.1304 | AX12: 0.9992789217 | AZ12: 190937.6284 | BB12: 1.050595081 | BD12: -302364.186 | BE12: =BD12*IF(BD12>0,1+Z12,1-Z12) -> -298917.2339 | BF12: 1.0472 | BH12: -1170653.405
A13: 210004 | B13: Holy Cross Hospital | C13: 26905.75 | D13: 322869 | E13: 307735969.2 | F13: 953.129502 | G13: 11437.55402 | H13: 25869.49 | I13: 310433.88 | J13: 319334912.6 | K13: 1028.672877 | L13: 12344.07453 | M13: 0.079258249 | P13: -0.0025 | Q13: 0.07756024092 | R13: 12324.65347 | S13: 0.001575789469 | T13: -0.0005252631562 | U13: 0 | V13: 0 | W13: -0.0005252631562 | X13: 0.004699998867 | Y13: 0 | Z13: 0.004699998867 | AA13: -0.00052279442 | AB13: 72844385.54 | AC13: -38082.63829 | AE13: 80983841.33 | AF13: 0.9995297502 | AH13: 25718 | AJ13: =73355-AH13 -> 47637 | AK13: 0 | AL13: 0 | AM13: 1.000706207 | AO13: 0 | AP13: 1.000706207 | AR13: 316457.85 | AS13: -137037.47 | AT13: 0.00288 | AU13: 315546.4514 | AV13: -136642.8021 | AW13: 315546.4514 | AX13: 1.00460262 | AZ13: 195937.4624 | BB13: 1.062669748 | BD13: 121482.9193 | BE13: 122053.8889 | BF13: 1.0642 | BH13: -1201307.775
A14: 210005 | B14: Frederick Health Hospital | C14: 33067.83 | D14: 396813.96 | E14: 401687722.5 | F14: 1012.282236 | G14: 12147.38683 | H14: 34180.42 | I14: 410165.04 | J14: 466034493.5 | K14: 1136.212129 | L14: 13634.54555 | M14: 0.122426226 | P14: -0.0025 | Q14: 0.07756024092 | R14: 13089.54108 | S14: 0.04163663744 | T14: -0.01 | U14: 0 | V14: 0 | W14: -0.01 | X14: -0.0001 | Y14: -0.008 | Z14: -0.0081 | AA14: -0.01 | AB14: 121139200.1 | AC14: -1211392.001 | AE14: 122338053.4 | AF14: 0.9900979951 | AH14: 0 | AJ14: 0 | AK14: 0 | AL14: 0 | AM14: 0.9900979951 | AO14: 0 | AP14: 0.9900979951 | AR14: -471765.35 | AS14: -2125168.32 | AT14: 0.74786 | AU14: -118950.9153 | AV14: -535839.9402 | AW14: -118950.9153 | AX14: 0.9891256818 | AZ14: 266171.4868 | BB14: 1.041342596 | BD14: 6002744.207 | BE14: 5954121.979 | BF14: 1.09 | BH14: -1631918.024
A15: 210006 | B15: Harford Memorial | C15: 7347.7 | D15: 88172.4 | E15: 95237473.19 | F15: 1080.127945 | G15: 12961.53534 | H15: 6891.11 | I15: 82693.32 | J15: 101976847.3 | K15: 1233.193289 | L15: 14798.31947 | M15: 0.1417103831 | P15: -0.0075 | Q15: 0.06737649292 | R15: 13834.83813 | S15: 0.06964167812 | T15: -0.01 | U15: 0 | V15: 0 | W15: -0.01 | X15: -0.0143 | Y15: 0 | Z15: -0.0143 | AA15: -0.01 | AB15: 34787938.81 | AC15: -347879.3881 | AE15: 36371516.39 | AF15: 0.9904353895 | AH15: 0 | AJ15: 0 | AK15: 0 | AL15: 0 | AM15: 0.9904353895 | AO15: 0 | AP15: 0.9904353895 | AR15: 308307.19 | AS15: -330012.14 | AT15: 0.8318 | AU15: 51857.26936 | AV15: -55508.04195 | AW15: 51857.26936 | AX15: 0.9918611554 | AZ15: 49159.35033 | BB15: 1.024299297 | BD15: 1544022.734 | BE15: 1521943.209 | BF15: 1.0661 | BH15: -301399.7886
A16: 210008 | B16: Mercy Medical Center | C16: 10335.38 | D16: 124024.56 | E16: 158123962.9 | F16: 1274.940729 | G16: 15299.28875 | H16: 8531.12 | I16: 102373.44 | J16: 147206838.2 | K16: 1437.939745 | L16: 17255.27694 | M16: 0.1278483088 | P16: -0.0075 | Q16: 0.06737649292 | R16: 16330.10117 | S16: 0.05665462587 | T16: -0.01 | U16: 0 | V16: 0 | W16: -0.01 | X16: 0.00179999871 | Y16: -0.007666666667 | Z16: -0.005866667957 | AA16: -0.01 | AB16: 124207537.2 | AC16: -1242075.372 | AE16: 124696666.3 | AF16: 0.9900392255 | AH16: 0 | AJ16: 0 | AK16: 0 | AL16: 0 | AM16: 0.9900392255 | AO16: 0 | AP16: 0.9900392255 | AR16: -5143721.22 | AS16: -3496528.31 | AT16: 0 | AU16: -5143721.22 | AV16: -3496528.31 | AW16: -3496528.31 | AX16: 0.9619989546 | AZ16: 375513.8573 | BB16: 1.034273 | BD16: -2237369.853 | BE16: -2250495.759 | BF16: 1.0162 | BH16: -2302304.576
A17: 210009 | B17: Johns Hopkins Hospital | C17: 6679.96 | D17: 80159.52 | E17: 102417795.4 | F17: 1277.674758 | G17: 15332.0971 | H17: 5590.59 | I17: 67087.08 | J17: 99464795.47 | K17: 1482.62222 | L17: 17791.46664 | M17: 0.160406598 | P17: -0.005 | Q17: 0.07246232817 | R17: 16443.09655 | S17: 0.08200219958 | T17: -0.01 | U17: -0.0537 | V17: 0.7273 | W17: -0.01 | X17: 0.008200000206 | Y17: -0.01166666667 | Z17: -0.00346666646 | AA17: -0.01 | AB17: 495535370.7 | AC17: -4955353.707 | AE17: 509701347.1 | AF17: 0.990277927 | AH17: 0 | AJ17: 0 | AK17: 0 | AL17: 0 | AM17: 0.990277927 | AO17: 0 | AP17: 0.990277927 | AR17: -456734.74 | AS17: -4171190.4 | AT17: 0.76518 | AU17: -107250.4516 | AV17: -979478.9297 | AW17: -107250.4516 | AX17: 0.9900675088 | AZ17: 1477099.74 | BB17: 1.059618814 | BD17: -12008804.87 | BE17: -12050435.39 | BF17: 1.036 | BH17: -9056213.042
A18: 210011 | B18: Saint Agnes Hospital | C18: 19733.42 | D18: 236801.04 | E18: 262668688.9 | F18: 1109.237903 | G18: 13310.85483 | H18: 17664.51 | I18: 211974.12 | J18: 265530019.4 | K18: 1252.65301 | L18: 15031.83612 | M18: 0.1292915673 | P18: -0.005 | Q18: 0.07246232817 | R18: 14275.39036 | S18: 0.05298949687 | T18: -0.01 | U18: 0 | V18: 0 | W18: -0.01 | X18: -0.00360000213 | Y18: 0 | Z18: -0.00360000213 | AA18: -0.01 | AB18: 121894398.5 | AC18: -1218943.985 | AE18: 125846072.9 | AF18: 0.9903140086 | AH18: 0 | AJ18: 0 | AK18: 0 | AL18: 0 | AM18: 0.9903140086 | AO18: 0 | AP18: 0.9903140086 | AR18: -8528028.88 | AS18: -2594448.31 | AT18: 0.76295 | AU18: -2021569.246 | AV18: -615013.9719 | AW18: -615013.9719 | AX18: 0.9854269751 | AZ18: 265035.744 | BB18: 1.035971722 | BD18: -3095226.457 | BE18: -3106369.279 | BF18: 1.0113 | BH18: -1624954.697
A19: 210012 | B19: Sinai Hospital | C19: 26796.98 | D19: 321563.76 | E19: 388418219.9 | F19: 1207.904211 | G19: 14494.85054 | H19: 23151.23 | I19: 277814.76 | J19: 374162336.8 | K19: 1346.805104 | L19: 16161.66125 | M19: 0.1149933013 | P19: -0.01 | Q19: 0.06230273517 | R19: 15397.91937 | S19: 0.04960032989 | T19: -0.01 | U19: 0 | V19: 0 | W19: -0.01 | X19: 0.00239999937 | Y19: -0.003333333333 | Z19: -0.0009333339635 | AA19: -0.01 | AB19: 257492841.9 | AC19: -2574928.419 | AE19: 263762085.5 | AF19: 0.9902376856 | AH19: 0 | AJ19: 0 | AK19: 0 | AL19: 0 | AM19: 0.9902376856 | AO19: 0 | AP19: 0.9902376856 | AR19: -5688836.94 | AS19: -4715525.85 | AT19: 0.75151 | AU19: -1413619.091 | AV19: -1171761.018 | AW19: -1171761.018 | AX19: 0.9857951933 | AZ19: 794369.7398 | BB19: 1.058075763 | BD19: -1569281.961 | BE19: -1570746.625 | BF19: 1.0521 | BH19: -4870342.47
A20: 210013 | B20: Grace Medical Center | AC20: 0 | AE20: 871589.99 | AF20: 1 | AH20: 0 | AJ20: 0 | AK20: 0 | AL20: 0 | AM20: 1 | AO20: 0 | AP20: =AM20+((AO20)/(AE20*6/12)) -> 1 | AR20: -931978.4 | AS20: -55353.51 | AT20: 0 | AU20: =AR20*(1-AT20) -> -931978.4 | AV20: =AS20*(1-AT20) -> -55353.51 | AW20: =MAX(AU20,AV20) -> -55353.51 | AX20: 0.9364913427 | AZ20: 0 | BB20: 0.9364913427 | BD20: 0 | BE20: 0 | BF20: 0.9365 | BH20: 0
A21: 210015 | B21: MedStar Franklin Square | C21: 18892.34 | D21: 226708.08 | E21: 273839750.3 | F21: 1207.895856 | G21: 14494.75027 | H21: 17095.5 | I21: 205146 | J21: 283779802 | K21: 1383.306533 | L21: 16599.6784 | M21: 0.1452200342 | P21: -0.01 | Q21: 0.06230273517 | R21: 15397.81285 | S21: 0.0780543025 | T21: -0.01 | U21: 0 | V21: 0 | W21: -0.01 | X21: 0.01379999995 | Y21: 0 | Z21: 0.01379999995 | AA21: -0.01 | AB21: 164456664.6 | AC21: -1644566.646 | AE21: 170429288.5 | AF21: 0.9903504459 | AH21: 0 | AJ21: =96084-AH21 -> 96084 | AK21: 0 | AL21: 0 | AM21: 0.9914779985 | AO21: 0 | AP21: 0.9914779985 | AR21: 6015454.06 | AS21: -2070867.29 | AT21: 0 | AU21: 6015454.06 | AV21: -2070867.29 | AW21: 6015454.06 | AX21: 1.026773892 | AZ21: 123096.8225 | BB21: 1.044108493 | BD21: -2346556.495 | BE21: -2314174.015 | BF21: 1.0305 | BH21: -754716.1635
A22: 210016 | B22: Washington Adventist (White Oak) | C22: 21148.92 | D22: 253787.04 | E22: 256483962.4 | F22: 1010.626714 | G22: 12127.52057 | H22: 19480.19 | I22: 233762.28 | J22: 252224716 | K22: 1078.979534 | L22: 12947.75441 | M22: 0.0676340919 | P22: -0.0025 | Q22: 0.07756024092 | R22: 13068.13399 | S22: -0.00921168826 | T22: 0.003070562753 | U22: 0 | V22: 0 | W22: 0.003070562753 | X22: -0.0024 | Y22: 0.01066666667 | Z22: 0.008266666667 | AA22: 0.003095946072 | AB22: 106183677.9 | AC22: 328738.9406 | AE22: 112704725.4 | AF22: 1.002916816 | AH22: 0 | AJ22: 0 | AK22: 0 | AL22: 0 | AM22: 1.002916816 | AO22: 0 | AP22: 1.002916816 | AR22: -973818.24 | AS22: -405606.05 | AT22: 0 | AU22: -973818.24 | AV22: -405606.05 | AW22: -405606.05 | AX22: 0.9993179779 | AZ22: 83870.86841 | BB22: 1.017177929 | BD22: -218283.1384 | BE22: -216478.6645 | BF22: 1.0153 | BH22: -514218.7976
A23: 210017 | B23: Garrett County | C23: 4729.33 | D23: 56751.96 | E23: 48289093.38 | F23: 850.8797472 | G23: 10210.55697 | H23: 4609.92 | I23: 55319.04 | J23: 52481375.92 | K23: 948.7036637 | L23: 11384.44396 | M23: 0.1149679691 | P23: 0 | Q23: 0.08267023117 | R23: 11054.66607 | S23: 0.02983155624 | T23: -0.009943852081 | U23: 0 | V23: 0 | W23: -0.009943852081 | X23: 0.02 | Y23: 0.01733333333 | Z23: 0.03733333333 | AA23: -0.009572614937 | AB23: 16547443.58 | AC23: -158402.3056 | AE23: 16596609.55 | AF23: 0.9904557431 | AH23: 0 | AJ23: 0 | AK23: 0 | AL23: 27083 | AM23: 0.9937194217 | AO23: 0 | AP23: 0.9937194217 | AR23: 0 | AS23: 0 | AT23: 0 | AU23: 0 | AV23: 0 | AW23: 0 | AX23: 0.9937194217 | AZ23: 23629.09094 | BB23: 1.027888942 | BD23: 93761.10075 | BE23: 97261.51517 | BF23: 1.0337 | BH23: -144871.7888
A24: 210018 | B24: MedStar Montgomery General | C24: 14641.4 | D24: 175696.8 | E24: 169609917.9 | F24: 965.3557601 | G24: 11584.26912 | H24: 14712.56 | I24: 176550.72 | J24: 184540445.5 | K24: 1045.254562 | L24: 12543.05474 | M24: 0.08276617274 | P24: 0 | Q24: 0.08267023117 | R24: 12541.94333 | S24: 8.861569509e-05 | T24: -2.953856503e-05 | U24: 0 | V24: 0 | W24: -2.953856503e-05 | X24: 0.005400004289 | Y24: 0.01666666667 | Z24: 0.02206667096 | AA24: -2.888674723e-05 | AB24: 62459211.16 | AC24: -1804.243445 | AE24: 64478760 | AF24: 0.999972018 | AH24: 0 | AJ24: 0 | AK24: 0 | AL24: 0 | AM24: 0.999972018 | AO24: 0 | AP24: 0.999972018 | AR24: -478581.76 | AS24: -2566727.2 | AT24: 0 | AU24: -478581.76 | AV24: -2566727.2 | AW24: -478581.76 | AX24: 0.9925497016 | AZ24: 143992.1033 | BB24: 1.046145808 | BD24: -795947.4874 | BE24: -778383.5761 | BF24: 1.0341 | BH24: -882826.7503
A25: 210019 | B25: Peninsula Regional | C25: 27932.45 | D25: 335189.4 | E25: 337743048.9 | F25: 1007.618525 | G25: 12091.4223 | H25: 27182.93 | I25: 326195.16 | J25: 376832751.3 | K25: 1155.237102 | L25: 13862.84522 | M25: 0.1465024442 | P25: -0.0075 | Q25: 0.06737649292 | R25: 12906.09993 | S25: 0.07413124776 | T25: -0.01 | U25: 0 | V25: 0 | W25: -0.01 | X25: 0.0012 | Y25: 0.007333333333 | Z25: 0.008533333333 | AA25: -0.01 | AB25: 162018211.8 | AC25: -1620182.118 | AE25: 163592964.4 | AF25: 0.9900962604 | AH25: 0 | AJ25: 0 | AK25: 306355 | AL25: 652316 | AM25: 1.001816459 | AO25: 0 | AP25: 1.001816459 | AR25: 207284.57 | AS25: -2602038.21 | AT25: 0.13121 | AU25: 180086.7616 | AV25: -2260624.776 | AW25: 180086.7616 | AX25: 1.002917281 | AZ25: 176018.092 | BB25: 1.028740116 | BD25: 1325145.587 | BE25: 1336453.496 | BF25: 1.0369 | BH25: -1079180.571
A26: 210022 | B26: Suburban Hospital | C26: 34433.45 | D26: 413201.4 | E26: 363426264.9 | F26: 879.5378353 | G26: 10554.45402 | H26: 34717.85 | I26: 416614.2 | J26: 413552643.2 | K26: 992.6513383 | L26: 11911.81606 | M26: 0.1286056136 | P26: 0 | Q26: 0.08267023117 | R26: 11426.99318 | S26: 0.04242786132 | T26: -0.01 | U26: 0 | V26: 0 | W26: -0.01 | X26: 0.008199998193 | Y26: -0.005666666667 | Z26: 0.002533331526 | AA26: -0.01 | AB26: 110093477.4 | AC26: -1100934.774 | AE26: 118960681.5 | AF26: 0.9907453895 | AH26: 0 | AJ26: 0 | AK26: 0 | AL26: 0 | AM26: 0.9907453895 | AO26: 0 | AP26: 0.9907453895 | AR26: -42166.27 | AS26: -1207538.98 | AT26: 0.77446 | AU26: -9510.180536 | AV26: -272348.3415 | AW26: -9510.180536 | AX26: 0.9906654456 | AZ26: 207790.1054 | BB26: 1.032586545 | BD26: 1627587.279 | BE26: 1631710.497 | BF26: 1.0463 | BH26: -1273977.248
A27: 210023 | B27: Anne Arundel Medical Center | C27: 42784.25 | D27: 513411 | E27: 494216672.9 | F27: 962.6141102 | G27: 11551.36932 | H27: 43581.83 | I27: 522981.96 | J27: 568260356.7 | K27: 1086.577359 | L27: 13038.9283 | M27: 0.128777718 | P27: 0 | Q27: 0.08267023117 | R27: 12506.32369 | S27: 0.04258682424 | T27: -0.01 | U27: 0 | V27: 0 | W27: -0.01 | X27: -0.004000000756 | Y27: 0.009333333333 | Z27: 0.005333332577 | AA27: -0.01 | AB27: 204980698.1 | AC27: -2049806.981 | AE27: 210725023.3 | AF27: 0.9902725982 | AH27: 0 | AJ27: =432251-AH27 -> 432251 | AK27: 0 | AL27: 686311 | AM27: 1.000888917 | AO27: 0 | AP27: 1.000888917 | AR27: -286462.74 | AS27: -2528972.82 | AT27: 0.36128 | AU27: -182969.4813 | AV27: -1615305.52 | AW27: -182969.4813 | AX27: 1.000020631 | AZ27: 464560.8363 | BB27: 1.052930627 | BD27: 13138706.61 | BE27: 13208779.7 | BF27: 1.1156 | BH27: -2848258.509
A28: 210024 | B28: MedStar Union Memorial | C28: 12045.1 | D28: 144541.2 | E28: 179691977.7 | F28: 1243.188639 | G28: 14918.26367 | H28: 10186.63 | I28: 122239.56 | J28: 171780796.8 | K28: 1405.279901 | L28: 16863.35882 | M28: 0.1303834813 | P28: -0.0075 | Q28: 0.06737649292 | R28: 15923.40395 | S28: 0.05902976953 | T28: -0.01 | U28: 0 | V28: 0 | W28: -0.01 | X28: -0.001199998481 | Y28: -0.0006666666667 | Z28: -0.001866665148 | AA28: -0.01 | AB28: 147488140.8 | AC28: -1474881.408 | AE28: 152799097.2 | AF28: 0.9903475777 | AH28: 0 | AJ28: 0 | AK28: 0 | AL28: 0 | AM28: 0.9903475777 | AO28: 0 | AP28: 0.9903475777 | AR28: 1604072.44 | AS28: -398995.27 | AT28: 0 | AU28: 1604072.44 | AV28: -398995.27 | AW28: 1604072.44 | AX28: 1.000845496 | AZ28: 257324.2689 | BB28: 1.041263159 | BD28: -2204847.267 | BE28: -2208962.978 | BF28: 1.0268 | BH28: -1577675.046
A29: 210027 | B29: UPMC - Western Maryland | C29: 15889.67 | D29: 190676.04 | E29: 197555005.7 | F29: 1036.076718 | G29: 12432.92062 | H29: 15368.33 | I29: 184419.96 | J29: 216368701.5 | K29: 1173.239065 | L29: 14078.86878 | M29: 0.1323862844 | P29: -0.0075 | Q29: 0.06737649292 | R29: 13270.6072 | S29: 0.06090614881 | T29: -0.01 | U29: 0 | V29: 0 | W29: -0.01 | X29: 0.002600000378 | Y29: 0.01066666667 | Z29: 0.01326666704 | AA29: -0.01 | AB29: 112205681.3 | AC29: -1122056.813 | AE29: 111171912.9 | AF29: 0.99 | AH29: 0 | AJ29: 0 | AK29: 0 | AL29: 0 | AM29: 0.99 | AO29: 0 | AP29: 0.99 | AR29: 2107331.14 | AS29: -1283602.06 | AT29: 0 | AU29: 2107331.14 | AV29: -1283602.06 | AW29: 2107331.14 | AX29: 1.008955607 | AZ29: 229942.08 | BB29: 1.058595933 | BD29: -1450983.99 | BE29: -1431734.269 | BF29: 1.0457 | BH29: -1409792.722
A30: 210028 | B30: MedStar Saint Mary’s Hospital | C30: 14588.83 | D30: 175065.96 | E30: 174370849.9 | F30: 996.0294391 | G30: 11952.35327 | H30: 15303.5 | I30: 183642 | J30: 211117425.2 | K30: 1149.61406 | L30: 13795.36872 | M30: 0.1541968692 | P30: 0 | Q30: 0.08267023117 | R30: 12940.45708 | S30: 0.06606502695 | T30: -0.01 | U30: 0 | V30: 0 | W30: -0.01 | X30: -0.004700004135 | Y30: 0.01733333333 | Z30: 0.0126333292 | AA30: -0.01 | AB30: 65314724.86 | AC30: -653147.2486 | AE30: 66232809.08 | AF30: 0.9901386147 | AH30: 0 | AJ30: 0 | AK30: 0 | AL30: 0 | AM30: 0.9901386147 | AO30: 0 | AP30: 0.9901386147 | AR30: -1910100 | AS30: -3366991.47 | AT30: 0 | AU30: -1910100 | AV30: -3366991.47 | AW30: -1910100 | AX30: 0.9612994333 | AZ30: 91840.54349 | BB30: 0.9945786052 | BD30: -887310.5473 | BE30: -876100.8611 | BF30: 0.9814 | BH30: -563081.4934
A31: 210029 | B31: Johns Hopkins Bayview Acute Care | C31: 9511.56 | D31: 114138.72 | E31: 142702147 | F31: 1250.25186 | G31: 15003.02232 | H31: 8128.11 | I31: 97537.32 | J31: 142683161.5 | K31: 1462.857105 | L31: 17554.28526 | M31: 0.1700499326 | P31: -0.0075 | Q31: 0.06737649292 | R31: 16013.87335 | S31: 0.09619233734 | T31: -0.01 | U31: 0 | V31: 0 | W31: -0.01 | X31: 0.01130000034 | Y31: -0.003333333333 | Z31: 0.007966667008 | AA31: -0.01 | AB31: 186413274.4 | AC31: -1864132.744 | AE31: 191785647.5 | AF31: 0.9902801238 | AH31: 0 | AJ31: 0 | AK31: 0 | AL31: 0 | AM31: 0.9902801238 | AO31: 0 | AP31: 0.9902801238 | AR31: -1545716.26 | AS31: -2287353.72 | AT31: 0.73245 | AU31: -413556.3854 | AV31: -611981.4878 | AW31: -413556.3854 | AX31: 0.9881237769 | AZ31: 493760.6651 | BB31: 1.049912843 | BD31: -4716429.44 | BE31: -4678855.217 | BF31: 1.0255 | BH31: -3027284.924
A32: 210030 | B32: UM Shore Medical Center at Chestertown | C32: 6705.83 | D32: 80469.96 | E32: 82944534.94 | F32: 1030.751537 | G32: 12369.01844 | H32: 6714.75 | I32: 80577 | J32: 96282264.46 | K32: 1194.910017 | L32: 14338.92021 | M32: 0.1592609611 | P32: -0.0025 | Q32: 0.07756024092 | R32: 13328.36249 | S32: 0.07582009531 | T32: -0.01 | U32: 0 | V32: 0 | W32: -0.01 | X32: 0.01999998918 | Y32: 0 | Z32: 0.01999998918 | AA32: -0.01 | AB32: 20658214.56 | AC32: -206582.1456 | AE32: 20551784.05 | AF32: 0.99 | AH32: 0 | AJ32: 0 | AK32: 0 | AL32: 0 | AM32: 0.99 | AO32: 0 | AP32: 0.99 | AR32: -43794.74 | AS32: -320620.03 | AT32: 0.67495 | AU32: -14235.48024 | AV32: -104217.5408 | AW32: -14235.48024 | AX32: 0.989307336 | AZ32: 41817.66892 | BB32: 1.03814125 | BD32: 911116.4931 | BE32: 929338.8131 | BF32: 1.0834 | BH32: -256387.3707
A33: 210032 | B33: Union of Cecil | C33: 14092.53 | D33: 169110.36 | E33: 184092276.9 | F33: 1088.592543 | G33: 13063.11052 | H33: 13535.59 | I33: 162427.08 | J33: 190683038.8 | K33: 1173.960887 | L33: 14087.53064 | M33: 0.07842084136 | P33: -0.005 | Q33: 0.07246232817 | R33: 14009.69392 | S33: 0.005555918411 | T33: -0.001851972804 | U33: 0 | V33: 0 | W33: -0.001851972804 | X33: -0.0150999975 | Y33: -0.008333333333 | Z33: -0.02343333084 | AA33: -0.001895370695 | AB33: 46306827.88 | AC33: -87768.60455 | AE33: 46987436.05 | AF33: 0.9981320836 | AH33: 0 | AJ33: 0 | AK33: 0 | AL33: 0 | AM33: 0.9981320836 | AO33: 0 | AP33: 0.9981320836 | AR33: 0 | AS33: 0 | AT33: 0 | AU33: 0 | AV33: 0 | AW33: 0 | AX33: 0.9981320836 | AZ33: 141021.7573 | BB33: 1.070162449 | BD33: -1456870.803 | BE33: -1491010.139 | BF33: 1.0384 | BH33: -864615.3289
A34: 210033 | B34: Carroll County General | C34: 27586.17 | D34: 331034.04 | E34: 348618959.5 | F34: 1053.121182 | G34: 12637.45418 | H34: 26612.58 | I34: 319350.96 | J34: 373591804.5 | K34: 1169.847131 | L34: 14038.16558 | M34: 0.1108380987 | P34: -0.005 | Q34: 0.07246232817 | R34: 13553.19354 | S34: 0.03578286107 | T34: -0.01 | U34: 0 | V34: 0 | W34: -0.01 | X34: 0.002799999669 | Y34: 0.012 | Z34: 0.01479999967 | AA34: -0.01 | AB34: 85249832.53 | AC34: -852498.3253 | AE34: 88273563.72 | AF34: 0.990342541 | AH34: 0 | AJ34: 0 | AK34: 0 | AL34: 0 | AM34: 0.990342541 | AO34: 0 | AP34: 0.990342541 | AR34: 2420576.36 | AS34: -1319842.59 | AT34: 0.80951 | AU34: 461095.5908 | AV34: -251416.815 | AW34: 461095.5908 | AX34: 0.9955660255 | AZ34: 142608.5007 | BB34: 1.034338721 | BD34: -489590.9377 | BE34: -482344.992 | BF34: 1.0289 | BH34: -874343.7753
A35: 210034 | B35: MedStar Harbor Hospital | C35: 4297.66 | D35: 51571.92 | E35: 64458319.55 | F35: 1249.872402 | G35: 14998.46883 | H35: 3649.02 | I35: 43788.24 | J35: 59452173.28 | K35: 1357.720093 | L35: 16292.64111 | M35: 0.08628696034 | P35: -0.0075 | Q35: 0.06737649292 | R35: 16009.01306 | S35: 0.01771677337 | T35: -0.005905591122 | U35: 0 | V35: 0 | W35: -0.005905591122 | X35: 0.009499998836 | Y35: 0.008666666667 | Z35: 0.0181666655 | AA35: -0.005798306224 | AB35: 44166285.79 | AC35: -256089.6498 | AE35: 46539078.67 | AF35: 0.9944973202 | AH35: 0 | AJ35: 0 | AK35: 0 | AL35: 0 | AM35: 0.9944973202 | AO35: 0 | AP35: 0.9944973202 | AR35: 2422092.26 | AS35: -993487.52 | AT35: 0 | AU35: 2422092.26 | AV35: -993487.52 | AW35: 2422092.26 | AX35: 1.046541588 | AZ35: 52558.90845 | BB35: 1.073645988 | BD35: -572192.6835 | BE35: -561797.8504 | BF35: 1.0616 | BH35: -322242.7431
A36: 210035 | B36: UM Charles Regional Medical Center | C36: 17691.5 | D36: 212298 | E36: 228573339.6 | F36: 1076.662708 | G36: 12919.9525 | H36: 17885.75 | I36: 214629 | J36: 241594241.8 | K36: 1125.636525 | L36: 13507.6383 | M36: 0.04548668479 | P36: -0.0025 | Q36: 0.07756024092 | R36: 13922.02712 | S36: -0.02976497732 | T36: 0.009921659105 | U36: 0 | V36: 0 | W36: 0.009921659105 | X36: 0.002599997119 | Y36: 0 | Z36: 0.002599997119 | AA36: 0.00994745539 | AB36: 51164458.18 | AC36: 508956.1653 | AE36: 53600882.76 | AF36: 1.009495294 | AH36: 139237 | AJ36: =271559-AH36 -> 132322 | AK36: 0 | AL36: 128419 | AM36: 1.019224276 | AO36: 0 | AP36: 1.019224276 | AR36: 103.7816 | AS36: -101257.5 | AT36: 0.69704 | AU36: 31.44167354 | AV36: -30676.9722 | AW36: 31.44167354 | AX36: 1.019224863 | AZ36: 55149.98788 | BB36: 1.04391848 | BD36: 2552850.398 | BE36: 2559487.802 | BF36: 1.0917 | BH36: -338128.852
A37: 210037 | B37: UM Shore Medical Center at Easton | C37: 23652.17 | D37: 283826.04 | E37: 292281072.6 | F37: 1029.789488 | G37: 12357.47386 | H37: 23302.75 | I37: 279633 | J37: 332676273.7 | K37: 1189.688891 | L37: 14276.26669 | M37: 0.1552738733 | P37: -0.005 | Q37: 0.07246232817 | R37: 13252.92519 | S37: 0.07721627411 | T37: =MIN($T$6,MAX(-T$6,(R37-L37)/R37*($T$6/$S$6))) -> -0.01 | U37: 0 | V37: 0 | W37: -0.01 | X37: 0.01080000117 | Y37: -0.003666666667 | Z37: 0.007133334503 | AA37: -0.01 | AB37: 127372849.7 | AC37: -1273728.497 | AE37: 126276919.3 | AF37: 0.99 | AH37: 0 | AJ37: 0 | AK37: 0 | AL37: 0 | AM37: 0.99 | AO37: 0 | AP37: 0.99 | AR37: -3901944.84 | AS37: -1225647.98 | AT37: 0.73123 | AU37: -1048725.715 | AV37: -329417.4076 | AW37: -329417.4076 | AX37: 0.9873913094 | AZ37: 202321.0799 | BB37: 1.025844147 | BD37: 1493971.172 | BE37: 1504628.169 | BF37: 1.0378 | BH37: -1240446.229
A38: 210038 | B38: UM Medical Center Midtown Campus | C38: 4105.17 | D38: 49262.04 | E38: 64061111.17 | F38: 1300.415313 | G38: 15604.98376 | H38: 3226.06 | I38: 38712.72 | J38: 54950173.63 | K38: 1419.434585 | L38: 17033.21501 | M38: 0.09152404641 | P38: -0.01 | Q38: 0.06230273517 | R38: 16577.21693 | S38: 0.02750751765 | T38: -0.00916917255 | U38: 0 | V38: 0 | W38: -0.00916917255 | X38: 0.01529999671 | Y38: -0.003333333333 | Z38: 0.01196666338 | AA38: -0.009059448149 | AB38: 47879193.99 | AC38: -433759.0753 | AE38: 49208428.36 | AF38: 0.9911852687 | AH38: 0 | AJ38: 0 | AK38: 0 | AL38: 0 | AM38: 0.9911852687 | AO38: 0 | AP38: 0.9911852687 | AR38: -8010.1 | AS38: -146690.92 | AT38: 0.62189 | AU38: -3028.698911 | AV38: -55465.30376 | AW38: -3028.698911 | AX38: 0.9911237203 | AZ38: 101609.3434 | BB38: 1.040680764 | BD38: -1410314.844 | BE38: -1393438.081 | BF38: 1.0124 | BH38: -622974.7629
A39: 210039 | B39: Calvert Memorial | C39: 13161.75 | D39: 157941 | E39: 163099277.7 | F39: 1032.659523 | G39: 12391.91428 | H39: 14042.83 | I39: 168513.96 | J39: 187244187.4 | K39: 1111.149411 | L39: 13333.79293 | M39: 0.07600751855 | P39: 0 | Q39: 0.08267023117 | R39: 13416.35669 | S39: -0.006153963069 | T39: 0.002051321023 | U39: 0 | V39: 0 | W39: 0.002051321023 | X39: 0.006500001837 | Y39: -0.004666666667 | Z39: 0.00183333517 | AA39: 0.002055081782 | AB39: 54092384.57 | AC39: 111164.2741 | AE39: 55899875.68 | AF39: 1.001988632 | AH39: 0 | AJ39: 0 | AK39: 0 | AL39: 0 | AM39: 1.001988632 | AO39: 0 | AP39: 1.001988632 | AR39: 878122.89 | AS39: -256583.42 | AT39: 0 | AU39: 878122.89 | AV39: -256583.42 | AW39: 878122.89 | AX39: 1.017697484 | AZ39: 101035.0454 | BB39: 1.061075775 | BD39: -262054.0453 | BE39: -261573.6124 | BF39: 1.0564 | BH39: -619453.6973
A40: 210040 | B40: Northwest Hospital | C40: 14659.13 | D40: 175909.56 | E40: 208497839.8 | F40: 1185.255877 | G40: 14223.07052 | H40: 13000.63 | I40: 156007.56 | J40: 205894389.8 | K40: 1319.771874 | L40: 15837.26249 | M40: 0.1134911033 | P40: -0.01 | Q40: 0.06230273517 | R40: 15109.20672 | S40: 0.04818623393 | T40: -0.01 | U40: 0 | V40: 0 | W40: -0.01 | X40: -0.002499999052 | Y40: 0.012 | Z40: 0.009500000948 | AA40: -0.01 | AB40: 94547334.16 | AC40: -945473.3416 | AE40: 98485707.47 | AF40: 0.9903998929 | AH40: 0 | AJ40: 0 | AK40: 0 | AL40: 0 | AM40: 0.9903998929 | AO40: 0 | AP40: 0.9903998929 | AR40: -1182971.86 | AS40: -285970.75 | AT40: 0.73747 | AU40: -310565.6024 | AV40: -75075.901 | AW40: -75075.901 | AX40: 0.9896375904 | AZ40: 130114.6652 | BB40: 1.021345257 | BD40: -513099.9204 | BE40: -508225.4707 | BF40: 1.0162 | BH40: -797743.1013
A41: 210043 | B41: UM Baltimore Washington Medical Center | C41: 32586.68 | D41: 391040.16 | E41: 413877308.9 | F41: 1058.401032 | G41: 12700.81238 | H41: 32423.96 | I41: 389087.52 | J41: 471653053.5 | K41: 1212.202986 | L41: 14546.43583 | M41: 0.1453153855 | P41: -0.0025 | Q41: 0.07756024092 | R41: 13685.89045 | S41: 0.06287828933 | T41: -0.01 | U41: 0 | V41: 0 | W41: -0.01 | X41: 0.00319999928 | Y41: 0 | Z41: 0.00319999928 | AA41: -0.01 | AB41: 140683573.3 | AC41: -1406835.733 | AE41: 145675886.4 | AF41: 0.9903427 | AH41: 0 | AJ41: =168799-AH41 -> 168799 | AK41: 0 | AL41: 171536 | AM41: 0.9950151961 | AO41: 0 | AP41: 0.9950151961 | AR41: -4655072.06 | AS41: -4369880.72 | AT41: 0.82006 | AU41: -837633.6665 | AV41: -786316.3368 | AW41: -786316.3368 | AX41: 0.989617485 | AZ41: 211689.2649 | BB41: 1.024493143 | BD41: 8619217.404 | BE41: 8646798.893 | BF41: 1.0838 | BH41: -1297883.297
A42: 210044 | B42: Greater Baltimore Medical Center | C42: 19386.58 | D42: 232638.96 | E42: 249898567.8 | F42: 1074.19053 | G42: 12890.28636 | H42: 18375.03 | I42: 220500.36 | J42: 263688816.8 | K42: 1195.865697 | L42: 14350.38837 | M42: 0.1132714951 | P42: -0.005 | Q42: 0.07246232817 | R42: 13824.34652 | S42: 0.03805184184 | T42: -0.01 | U42: 0 | V42: 0 | W42: -0.01 | X42: 0.006199998232 | Y42: -0.006 | Z42: 0.0001999982324 | AA42: -0.01 | AB42: 112433786 | AC42: -1124337.86 | AE42: 113701995.1 | AF42: 0.990111538 | AH42: 193495 | AJ42: =215990-AH42 -> 22495 | AK42: 23006 | AL42: 113746 | AM42: 0.9929126674 | AO42: 0 | AP42: 0.9929126674 | AR42: -5930429.77 | AS42: -2485695.24 | AT42: 0.39384 | AU42: -3594789.309 | AV42: -1506729.027 | AW42: -1506729.027 | AX42: 0.9796611055 | AZ42: 249556.854 | BB42: 1.03233709 | BD42: -1255093.852 | BE42: -1254842.835 | BF42: 1.0213 | BH42: -1530052.422
A43: 210048 | B43: Howard General Hospital | C43: 30977.37 | D43: 371728.44 | E43: 346717941.6 | F43: 932.7183619 | G43: 11192.62034 | H43: 31427 | I43: 377124 | J43: 398333512.5 | K43: 1056.240156 | L43: 12674.88187 | M43: 0.1324320384 | P43: 0 | Q43: 0.08267023117 | R43: 12117.91685 | S43: 0.04596210901 | T43: -0.01 | U43: 0 | V43: 0 | W43: -0.01 | X43: -0.00939999856 | Y43: -0.004 | Z43: -0.01339999856 | AA43: -0.01 | AB43: 82002149.66 | AC43: -820021.4966 | AE43: 86339154.56 | AF43: 0.9905023219 | AH43: 0 | AJ43: 0 | AK43: 0 | AL43: 0 | AM43: 0.9905023219 | AO43: 0 | AP43: 0.9905023219 | AR43: -1858401.98 | AS43: -768084.73 | AT43: 0.77058 | AU43: -426354.5823 | AV43: -176213.9988 | AW43: -176213.9988 | AX43: 0.9884613707 | AZ43: 72100.00103 | BB43: 1.008503263 | BD43: 5766148.377 | BE43: 5688881.997 | BF43: 1.0744 | BH43: -442050.6969
A44: 210049 | B44: Upper Chesapeake Medical Center | C44: 32188.1 | D44: 386257.2 | E44: 415742843.2 | F44: 1076.336812 | G44: 12916.04174 | H44: 29446.4 | I44: 353356.8 | J44: 424069724.2 | K44: 1200.117627 | L44: 14401.41152 | M44: 0.115001934 | P44: -0.005 | Q44: 0.07246232817 | R44: 13851.9682 | S44: 0.03966536144 | T44: -0.01 | U44: 0 | V44: 0 | W44: -0.01 | X44: -0.003499999237 | Y44: 0 | Z44: -0.003499999237 | AA44: -0.01 | AB44: 110436185.9 | AC44: -1104361.859 | AE44: 113578763 | AF44: 0.990276687 | AH44: 0 | AJ44: 0 | AK44: 193984 | AL44: 0 | AM44: 0.9936925369 | AO44: 0 | AP44: 0.9936925369 | AR44: -4155196.07 | AS44: -2689031.33 | AT44: 0.83382 | AU44: -690510.4829 | AV44: -446863.2264 | AW44: -446863.2264 | AX44: 0.9897581462 | AZ44: 128520.5453 | BB44: 1.016915451 | BD44: -2925138.89 | BE44: -2935376.874 | BF44: 0.9911 | BH44: -787969.4286
A45: 210051 | B45: Doctors' Community Hospital | C45: 22249.95 | D45: 266999.4 | E45: 272214937.6 | F45: 1019.533892 | G45: 12234.40671 | H45: 21380.27 | I45: 256563.24 | J45: 298346680.5 | K45: 1162.858251 | L45: 13954.29901 | M45: 0.1405783169 | P45: 0 | Q45: 0.08267023117 | R45: 13245.82794 | S45: 0.05348635625 | T45: -0.01 | U45: 0 | V45: 0 | W45: -0.01 | X45: 0.003800001898 | Y45: 0.008666666667 | Z45: 0.01246666856 | AA45: -0.01 | AB45: 65665110.35 | AC45: -656651.1035 | AE45: 72224269.02 | AF45: 0.9909081655 | AH45: 114733 | AJ45: =127125-AH45 -> 12392 | AK45: 31919 | AL45: 178949 | AM45: 0.9970905749 | AO45: 0 | AP45: 0.9970905749 | AR45: 1838673.54 | AS45: -1437070.59 | AT45: 0.55938 | AU45: 810156.3352 | AV45: -633202.0434 | AW45: 810156.3352 | AX45: 1.008307806 | AZ45: 132494.2578 | BB45: 1.05233542 | BD45: 4741326.774 | BE45: 4800435.323 | BF45: 1.1188 | BH45: -812332.5681
A46: 210056 | B46: MedStar Good Samaritan | C46: 11415.9 | D46: 136990.8 | E46: 172357622.1 | F46: 1258.169323 | G46: 15098.03188 | H46: 9942.34 | I46: 119308.08 | J46: 172811406.2 | K46: 1448.446796 | L46: 17381.36155 | M46: 0.1512335976 | P46: -0.01 | Q46: 0.06230273517 | R46: 16038.68056 | S46: 0.08371517792 | T46: -0.01 | U46: 0 | V46: 0 | W46: -0.01 | X46: -0.004099999827 | Y46: -0.002666666667 | Z46: -0.006766666493 | AA46: -0.01 | AB46: 101295769.8 | AC46: -1012957.698 | AE46: 104840899.4 | AF46: 0.9903381438 | AH46: 0 | AJ46: 0 | AK46: 0 | AL46: 0 | AM46: 0.9903381438 | AO46: 0 | AP46: 0.9903381438 | AR46: 1670192.5 | AS46: -1235669.57 | AT46: 0 | AU46: 1670192.5 | AV46: -1235669.57 | AW46: 1670192.5 | AX46: 1.006268878 | AZ46: 61863.65571 | BB46: 1.020430601 | BD46: -1490799.169 | BE46: -1500886.91 | BF46: 1.0061 | BH46: -379290.8701
A47: 210057 | B47: Shady Grove Adventist | C47: 29489.94 | D47: 353879.28 | E47: 323272651.9 | F47: 913.5111045 | G47: 10962.13325 | H47: 29867.13 | I47: 358405.56 | J47: 360380570 | K47: 1005.510545 | L47: 12066.12654 | M47: 0.1007097126 | P47: 0 | Q47: 0.08267023117 | R47: 11868.37534 | S47: 0.01666202773 | T47: -0.005554009242 | U47: 0 | V47: 0 | W47: -0.005554009242 | X47: 0.007799998808 | Y47: 0.0006666666667 | Z47: 0.008466665475 | AA47: -0.005506985304 | AB47: 111924233 | AC47: -616365.1062 | AE47: 115685667.3 | AF47: 0.9946720703 | AH47: 0 | AJ47: 0 | AK47: 0 | AL47: 0 | AM47: 0.9946720703 | AO47: 0 | AP47: 0.9946720703 | AR47: -171980.88 | AS47: -1045531.94 | AT47: 0 | AU47: -171980.88 | AV47: -1045531.94 | AW47: -171980.88 | AX47: 0.9931854481 | AZ47: 362913.0275 | BB47: 1.068474919 | BD47: -2705289.295 | BE47: -2682384.516 | BF47: 1.0453 | BH47: -2225047.912
A48: 210058 | B48: UM Rehabilitation & Orthopaedic Institute | AC48: 155955 | AE48: 31728970.89 | AF48: =MAX(MIN(1+AC48/AE48,1.01),0.99) -> 1.004915224 | AH48: 0 | AJ48: 0 | AK48: 0 | AL48: 0 | AM48: 1.004915224 | AO48: 0 | AP48: =AM48+((AO48)/(AE48*6/12)) -> 1.004915224 | AR48: 0 | AS48: 0 | AT48: 0 | AU48: =AR48*(1-AT48) -> 0 | AV48: =AS48*(1-AT48) -> 0 | AW48: =MAX(AU48,AV48) -> 0 | AX48: 1.004915224 | AZ48: 122550.3364 | BB48: 1.097613096 | BD48: -722905.2253 | BE48: -722905.2253 | BF48: 1.0748 | BH48: -751365.6147
A49: 210060 | B49: Adventist Fort Washington | C49: 6269.25 | D49: =C49*12 -> 75231 | E49: 74271491.6 | F49: =E49/D49 -> 987.2458375 | G49: =E49/C49 -> 11846.95005 | H49: 5697.02 | I49: 68364.24 | J49: 79038029.91 | K49: =J49/I49 -> 1156.131187 | L49: =J49/H49 -> 13873.57424 | M49: =L49/G49-1 -> 0.1710671675 | P49: 0 | Q49: 0.08267023117 | R49: =G49*(1+Q49) -> 12826.34015 | S49: =(L49-R49)/R49 -> 0.08164714779 | T49: =MIN($T$6,MAX(-T$6,(R49-L49)/R49*($T$6/$S$6))) -> -0.01 | U49: 0 | V49: 0 | W49: -0.01 | X49: -0.004699999754 | Y49: 0 | Z49: =SUM(X49:Y49) -> -0.004699999754 | AA49: -0.01 | AB49: 19370578.44 | AC49: -193705.7844 | AE49: 20994374.84 | AF49: 0.9907734436 | AH49: 0 | AJ49: 0 | AK49: 0 | AL49: 0 | AM49: 0.9907734436 | AO49: 0 | AP49: 0.9907734436 | AR49: 0 | AS49: 0 | AT49: 0 | AU49: 0 | AV49: 0 | AW49: 0 | AX49: 0.9907734436 | AZ49: 44854.17527 | BB49: 1.042049093 | BD49: -370740.3938 | BE49: -372482.8736 | BF49: 1.0243 | BH49: -275004.4266
A50: 210061 | B50: Atlantic General | C50: 5691.05 | D50: 68292.6 | E50: 68767205.73 | F50: 1006.949592 | G50: 12083.39511 | H50: 5648.66 | I50: 67783.92 | J50: 73781810.44 | K50: 1088.485447 | L50: 13061.82536 | M50: 0.08097312415 | P50: -0.01 | Q50: 0.06230273517 | R50: 12836.22367 | S50: 0.01757539387 | T50: -0.005858464624 | U50: 0 | V50: 0 | W50: -0.005858464624 | X50: 0.008500000757 | Y50: -0.002666666667 | Z50: 0.005833334091 | AA50: -0.005824290243 | AB50: 31937452.96 | AC50: -186012.9956 | AE50: 32879270.23 | AF50: 0.9943425449 | AH50: 0 | AJ50: 0 | AK50: 0 | AL50: 118645 | AM50: 1.001559554 | AO50: 0 | AP50: 1.001559554 | AR50: 2858398.22 | AS50: -925343.31 | AT50: 0.72357 | AU50: 790147.02 | AV50: -255792.6512 | AW50: 790147.02 | AX50: 1.025591323 | AZ50: 47265.31492 | BB50: 1.060092319 | BD50: -160436.0974 | BE50: -159500.22 | BF50: 1.0552 | BH50: -289787.3107
A51: 210062 | B51: MedStar Southern Maryland | C51: 21889.85 | D51: 262678.2 | E51: 274944841.7 | F51: 1046.698362 | G51: 12560.38034 | H51: 21050.03 | I51: 252600.36 | J51: 298397125 | K51: 1181.301266 | L51: 14175.61519 | M51: 0.1285976064 | P51: -0.0025 | Q51: 0.07756024092 | R51: 13534.56647 | S51: 0.04736381647 | T51: -0.01 | U51: 0 | V51: 0 | W51: -0.01 | X51: 0.0008000002335 | Y51: 0 | Z51: 0.0008000002335 | AA51: -0.01 | AB51: 72093441.45 | AC51: -720934.4145 | AE51: 78952807.11 | AF51: 0.9908687931 | AH51: 133875 | AJ51: =199728-AH51 -> 65853 | AK51: 50841 | AL51: 153485 | AM51: 0.9977128563 | AO51: 0 | AP51: 0.9977128563 | AR51: -2207629.23 | AS51: -1020376.88 | AT51: 0 | AU51: -2207629.23 | AV51: -1020376.88 | AW51: -1020376.88 | AX51: 0.9847889728 | AZ51: 95523.74944 | BB51: 1.013826192 | BD51: -1024163.618 | BE51: -1023344.286 | BF51: 1.0009 | BH51: -585663.5147
A52: 210063 | B52: UM Saint Joseph Medical Center | C52: 25322.57 | D52: 303870.84 | E52: 330985567.8 | F52: 1089.231095 | G52: 13070.77314 | H52: 23602.66 | I52: 283231.92 | J52: 345303682.8 | K52: 1219.155252 | L52: 14629.86302 | M52: 0.1192806169 | P52: -0.005 | Q52: 0.07246232817 | R52: 14017.91179 | S52: 0.04365494944 | T52: -0.01 | U52: 0 | V52: 0 | W52: -0.01 | X52: -0.004300001725 | Y52: -0.0006666666667 | Z52: -0.004966668391 | AA52: -0.01 | AB52: 139340405.5 | AC52: -1393404.055 | AE52: 141188972.7 | AF52: 0.9901309286 | AH52: 0 | AJ52: 0 | AK52: 0 | AL52: 0 | AM52: 0.9901309286 | AO52: 0 | AP52: 0.9901309286 | AR52: -6174243.56 | AS52: -4114313.66 | AT52: 0.83042 | AU52: -1047028.223 | AV52: -697705.3105 | AW52: -697705.3105 | AX52: 0.9851892869 | AZ52: 338245.2259 | BB52: 1.042685884 | BD52: 1606662.794 | BE52: 1598683.033 | BF52: 1.054 | BH52: -2073807.708
A53: 210064 | B53: Levindale | AC53: 0 | AE53: 41525737.32 | AF53: 1 | AH53: 0 | AJ53: 0 | AK53: 0 | AL53: 0 | AM53: 1 | AO53: 0 | AP53: 1 | AR53: 0 | AS53: 0 | AT53: 0 | AU53: =AR53*(1-AT53) -> 0 | AV53: =AS53*(1-AT53) -> 0 | AW53: =MAX(AU53,AV53) -> 0 | AX53: 1 | AZ53: 36550.39178 | BB53: 1.021124475 | BD53: -891447.7695 | BE53: -891447.7695 | BF53: 0.9997 | BH53: -224093.2861
A54: 210065 | B54: Holy Cross Germantown Hospital | C54: 4341.55 | D54: 52098.6 | E54: 48103540.87 | F54: 923.3173419 | G54: 11079.8081 | H54: 4470.12 | I54: 53641.44 | J54: 54066160.35 | K54: 1007.917766 | L54: 12095.01319 | M54: 0.09162659452 | P54: 0 | Q54: 0.08267023117 | R54: 11995.7784 | S54: 0.008272475864 | T54: -0.002757491955 | U54: 0 | V54: 0 | W54: -0.002757491955 | X54: 0.002299999104 | Y54: 0.004666666667 | Z54: 0.006966665771 | AA54: -0.00273828143 | AB54: 27271451.58 | AC54: -74676.90943 | AE54: 29114881.72 | AF54: 0.9974350949 | AH54: 0 | AJ54: 0 | AK54: 0 | AL54: 0 | AM54: 0.9974350949 | AO54: 0 | AP54: 0.9974350949 | AR54: 255279.76 | AS54: -153612.91 | AT54: 0.0061 | AU54: 253722.5535 | AV54: -152675.8712 | AW54: 253722.5535 | AX54: 1.006149626 | AZ54: 18010.10566 | BB54: 1.020995729 | BD54: 44344.4783 | BE54: 44653.41146 | BF54: 1.0225 | BH54: -110421.3543
A56: Footnotes: | Y56: Max: | Z56: =MAX(Z10:Z54) -> 0.03733333333 | AC56: =SUM(AC10:AC54) -> -41604022.39 | BD56: =SUMIF(BD10:BD54,"<0") -> -56293296.8 | BM56: Should be zero
A57: *Due to rounding and the need to protect PHI by surpressing small cell sizes, beneficiary counts may not add to the facility total
A58: ** Includes Substance Abuse claims paid to hospital but not reported in the CCLF
A59: *** ECIP payments will be completed in two adjustments. The prliminary Jul to Dec 2021 adjustment shown in column AG was made in the Jan 1, 2023 MPA adjustment. In the July 1, 2023 adjustment this result is adjsuted to final values and the preliminary Jan to Jun 2022 adjustment is made.
A60: ^ One time adjustment for Jan to Jun 2021 to reflect correct DRG update factor values
A61: ^^ MPA Savings Component applies to CY2023, but to be imlemented 3/1/2023 so amount is grossed up by 12/10ths.
A62: ^^^ Reversal of MPA SC in December of 2023 with $50 M rerouted to UMMC to fund EQIP and other programs.
A63: *^ Funding for primary care programs approved by Commission in November 2024. Amount to be split as follows: $19 M (38%) to EQIP Primary Care and $31 M (62%) to be returned to the Department of Health for MDPCP-Aligned Medicaid programs.
